[Event "Chpt Reg Jeunes Occitanie 2026 - Espalion"]
[Site "Espalion, France"]
[Round "2.16"]
[ECO "?"]
[Annotator "?"]
[TimeControl "1h30 + 30sec/cp"]

1. d4 {[%clk 1:30:57][%emt 0:00:02]} 1... d5 {[%clk 1:30:56][%emt 0:00:05]} 2.
Bf4 {[%clk 1:31:16][%emt 0:00:10]} 2... c5 {[%clk 1:31:21][%emt 0:00:06]} 3.
c3 {[%clk 1:31:28][%emt 0:00:17]} 3... cxd4 {[%clk 1:30:19][%emt 0:01:33]} 4.
cxd4 {[%clk 1:31:35][%emt 0:00:23]} 4... Nc6 {[%clk 1:30:43][%emt 0:00:06]} 5.
Nf3 {[%clk 1:31:31][%emt 0:00:33]} 5... Nf6 {[%clk 1:31:02][%emt 0:00:11]} 6.
e3 {[%clk 1:30:53][%emt 0:01:09]} 6... Bf5 {[%clk 1:30:20][%emt 0:01:12]} 7.
Bd3 {[%clk 1:30:06][%emt 0:01:16]} 7... Bxd3 {[%clk 1:30:10][%emt 0:00:40]} 8.
Qxd3 {[%clk 1:29:34][%emt 0:01:02]} 8... e6 {[%clk 1:27:50][%emt 0:02:51]} 9.
Nc3 {[%clk 1:23:58][%emt 0:06:07]} 9... Bd6 {[%clk 1:24:43][%emt 0:03:36]} 10.
Bxd6 {[%clk 1:20:00][%emt 0:04:29]} 10... Qxd6 {[%clk 1:24:57][%emt 0:00:15]}
11. O-O {[%clk 1:19:45][%emt 0:00:45]} 11... O-O {[%clk 1:24:20][%emt 0:01:06]}
 12. Rac1 {[%clk 1:17:09][%emt 0:03:08]} 12... Rac8 {[%clk 1:23:05][%emt
0:01:45]} 13. Rfe1 {[%clk 1:15:52][%emt 0:01:45]} 13... Nb4 {[%clk
1:16:18][%emt 0:07:18]} 14. Qe2 {[%clk 0:59:19][%emt 0:17:03]} 14... Ne4
{[%clk 1:14:17][%emt 0:02:31]} 15. Nxe4 {[%clk 0:51:43][%emt 0:08:07]} 15...
dxe4 {[%clk 1:14:31][%emt 0:00:14]} 16. Nd2 {[%clk 0:48:26][%emt 0:03:48]}
16... f5 {[%clk 0:57:31][%emt 0:17:30]} 17. Rxc8 {[%clk 0:25:18][%emt 0:23:39]}
 17... Rxc8 {[%clk 0:57:48][%emt 0:00:14]} 18. Nc4 {[%clk 0:21:54][%emt
0:03:53]} 18... Qa6 {[%clk 0:57:33][%emt 0:00:43]} 19. Ne5 {[%clk
0:21:02][%emt 0:01:24]} 19... Qxe2 {[%clk 0:57:52][%emt 0:00:11]} 0-1

[White "AMRANE, Samy-Islam"]
[Black "KISS, Alexander"]
[WhiteElo "1809"]
[BlackElo "1487"]
[Result "1-0"]
[Date "2026.03.04"]

[Event "Chpt Reg Jeunes Occitanie 2026 - Espalion"]
[Site "Espalion, France"]
[Round "2.17"]
[ECO "?"]
[Annotator "?"]
[TimeControl "1h30 + 30sec/cp"]

1. e4 {[%clk 1:30:56][%emt 0:00:03]} 1... d5 {[%clk 1:30:54][%emt 0:00:07]} 2.
exd5 {[%clk 1:31:13][%emt 0:00:13]} 2... Qxd5 {[%clk 1:31:07][%emt 0:00:16]}
3. Nc3 {[%clk 1:31:34][%emt 0:00:09]} 3... Qa5 {[%clk 1:31:23][%emt 0:00:15]}
4. d4 {[%clk 1:31:41][%emt 0:00:22]} 4... c6 {[%clk 1:31:37][%emt 0:00:15]} 5.
Nf3 {[%clk 1:32:02][%emt 0:00:09]} 5... Nf6 {[%clk 1:31:51][%emt 0:00:16]} 6.
Be2 {[%clk 1:31:53][%emt 0:00:40]} 6... Bf5 {[%clk 1:31:25][%emt 0:00:57]} 7.
O-O {[%clk 1:32:12][%emt 0:00:11]} 7... e6 {[%clk 1:31:18][%emt 0:00:37]} 8.
a3 {[%clk 1:32:17][%emt 0:00:25]} 8... Bd6 {[%clk 1:31:09][%emt 0:00:39]} 9.
Bg5 {[%clk 1:32:33][%emt 0:00:13]} 9... Nbd7 {[%clk 1:30:36][%emt 0:01:04]}
10. h3 {[%clk 1:31:53][%emt 0:01:10]} 10... O-O {[%clk 1:29:12][%emt 0:01:54]}
11. Bd3 {[%clk 1:30:58][%emt 0:01:25]} 11... Bxd3 {[%clk 1:28:08][%emt
0:01:34]} 12. Qxd3 {[%clk 1:31:14][%emt 0:00:15]} 12... h6 {[%clk
1:26:35][%emt 0:02:04]} 13. Be3 {[%clk 1:30:59][%emt 0:00:42]} 13... Qh5
{[%clk 1:23:21][%emt 0:03:45]} 14. Ne4 {[%clk 1:30:26][%emt 0:00:59]} 14...
Nxe4 {[%clk 1:22:26][%emt 0:01:30]} 15. Qxe4 {[%clk 1:30:29][%emt 0:00:27]}
15... Nf6 {[%clk 1:20:01][%emt 0:02:55]} 16. Qd3 {[%clk 1:30:41][%emt 0:00:18]}
 16... Rad8 {[%clk 1:19:20][%emt 0:01:11]} 17. Qb3 {[%clk 1:31:03][%emt
0:00:09]} 17... Rd7 {[%clk 1:15:01][%emt 0:04:48]} 18. c4 {[%clk 1:30:49][%emt
0:00:44]} 18... e5 {[%clk 1:12:35][%emt 0:02:56]} 19. dxe5 {[%clk
1:30:49][%emt 0:00:30]} 19... Bxe5 {[%clk 1:12:01][%emt 0:01:03]} 20. Nxe5
{[%clk 1:30:40][%emt 0:00:40]} 20... Qxe5 {[%clk 1:12:12][%emt 0:00:19]} 21.
Bxa7 {[%clk 1:30:50][%emt 0:00:20]} 21... Ne4 {[%clk 1:05:03][%emt 0:07:39]}
22. Be3 {[%clk 1:29:31][%emt 0:01:49]} 22... Re8 {[%emt 0:08:55]} 23. Rfe1
{[%clk 1:29:06][%emt 0:00:12]} 23... Re6 {[%clk 0:52:47][%emt 0:05:05]} 24.
Rad1 {[%clk 1:27:31][%emt 0:02:06]} 24... Rde7 {[%clk 0:47:12][%emt 0:06:04]}
25. Rd8+ {[%clk 1:27:26][%emt 0:00:35]} 25... Kh7 {[%clk 0:46:45][%emt
0:00:56]} 26. Qc2 {[%clk 1:27:38][%emt 0:00:20]} 26... Rg6 {[%clk
0:41:33][%emt 0:05:42]} 27. f4 {[%clk 1:23:11][%emt 0:04:56]} 27... Qh5 {[%clk
0:40:17][%emt 0:01:45]} 28. Bd4 {[%clk 1:20:26][%emt 0:03:16]} 28... Qf3
{[%clk 0:33:18][%emt 0:07:28]} 29. Be5 {[%clk 1:19:58][%emt 0:00:59]} 29...
Nc5 {[%clk 0:29:31][%emt 0:04:15]} 30. Qxg6+ {[%clk 1:20:21][%emt 0:00:08]}
30... Kxg6 {[%clk 0:29:22][%emt 0:00:39]} 31. gxf3 {[%clk 1:20:44][%emt
0:00:08]} 31... f6 {[%clk 0:28:55][%emt 0:00:57]} 32. Bc3 {[%clk 1:21:08][%emt
0:00:06]} 32... Rc7 {[%clk 0:28:36][%emt 0:00:49]} 33. Ba5 {[%clk
1:21:21][%emt 0:00:17]} 33... b6 {[%clk 0:28:43][%emt 0:00:23]} 34. Bxb6
{[%clk 1:21:39][%emt 0:00:12]} 34... Rb7 {[%clk 0:28:52][%emt 0:00:21]} 35.
Bxc5 {[%clk 1:22:00][%emt 0:00:10]} 35... Rxb2 {[%clk 0:29:06][%emt 0:00:16]}
36. a4 {[%clk 1:22:16][%emt 0:00:13]} 36... Kf5 {[%clk 0:29:16][%emt 0:00:20]}
37. Bd6 {[%clk 1:22:30][%emt 0:00:17]} 1-0

[White "VOLLE, Lucie"]
[Black "LABARBE, Gabriel"]
[WhiteElo "1480"]
[BlackElo "1731"]
[Result "0-1"]
[Date "2026.03.04"]

[Event "Chpt Reg Jeunes Occitanie 2026 - Espalion"]
[Site "Espalion, France"]
[Round "2.18"]
[ECO "?"]
[Annotator "?"]
[TimeControl "1h30 + 30sec/cp"]

1. e4 {[%clk 1:30:59]} 1... e5 {[%clk 1:30:53][%emt 0:00:08]} 2. Nf3 {[%clk
1:31:20]} 2... Nf6 {[%clk 1:30:53]} 3. Nxe5 {[%clk 1:31:20]} 3... d6 {[%clk
1:30:53]} 4. Nf3 {[%clk 1:31:20]} 4... Nxe4 {[%clk 1:30:53]} 5. Qe2 {[%clk
1:31:20]} 5... Qe7 {[%clk 1:30:53]} 6. Qd1 {[%clk 1:31:20]} 6... Nc3+ {[%clk
1:30:53]} 7. Qe2 {[%clk 1:31:20]} 7... Nxe2 {[%clk 1:30:53]} 8. Bxe2 {[%clk
1:31:20]} 8... g6 {[%clk 1:30:53]} 9. Nc3 {[%clk 1:31:20]} 9... Be6 {[%clk
1:30:53]} 10. O-O {[%clk 1:31:20]} 10... Bg7 {[%clk 1:30:53]} 11. d3 {[%clk
1:31:20]} 11... Nd7 {[%clk 1:30:53]} 12. Re1 {[%clk 1:31:20]} 12... O-O {[%clk
1:30:53]} 13. Bd1 {[%clk 1:31:20]} 13... Qd8 {[%clk 1:30:53]} 14. Ng5 {[%clk
1:31:20]} 14... Bd4 {[%clk 1:30:53]} 15. Re4 {[%clk 1:31:20]} 15... Qf6 {[%clk
1:30:53]} 16. Nxe6 {[%clk 1:31:20]} 16... Qxf2+ {[%clk 1:30:53]} 17. Kh1
{[%clk 1:31:20]} 17... Qg1# {[%clk 1:30:53]} 0-1

[White "BAROUKH, Pau"]
[Black "PEREZ MAS, Leandro"]
[WhiteElo "1712"]
[BlackElo "1479"]
[Result "1-0"]
[Date "2026.03.04"]

[Event "Chpt Reg Jeunes Occitanie 2026 - Espalion"]
[Site "Espalion, France"]
[Round "2.19"]
[ECO "?"]
[Annotator "?"]
[TimeControl "1h30 + 30sec/cp"]

1. e4 {[%clk 1:30:59]} 1... e5 {[%clk 1:30:54][%emt 0:00:07]} 2. Nf3 {[%clk
1:31:14][%emt 0:00:15]} 2... Nf6 {[%clk 1:31:14][%emt 0:00:09]} 3. Nxe5 {[%clk
1:31:21][%emt 0:00:23]} 3... Nc6 {[%clk 1:31:29][%emt 0:00:16]} 4. Nxc6 {[%clk
1:31:18][%emt 0:00:32]} 4... dxc6 {[%clk 1:31:50][%emt 0:00:09]} 5. Nc3 {[%clk
1:31:13][%emt 0:00:36]} 5... Bc5 {[%clk 1:31:58][%emt 0:00:21]} 6. Bc4 {[%clk
1:30:26][%emt 0:01:17]} 6... Ng4 {[%clk 1:31:09][%emt 0:01:18]} 7. O-O {[%clk
1:29:44][%emt 0:01:13]} 7... Qh4 {[%clk 1:30:34][%emt 0:01:05]} 8. h3 {[%clk
1:29:25][%emt 0:00:50]} 8... Nxf2 {[%clk 1:30:02][%emt 0:01:02]} 9. Rxf2
{[%clk 1:27:33][%emt 0:02:22]} 9... Bxf2+ {[%clk 1:29:34][%emt 0:00:58]} 10.
Kf1 {[%clk 1:26:19][%emt 0:01:44]} 10... O-O {[%clk 1:22:15][%emt 0:07:47]}
11. Qf3 {[%clk 1:24:52][%emt 0:01:58]} 11... Bc5 {[%clk 1:20:40][%emt 0:02:04]}
 12. Na4 {[%clk 1:20:20][%emt 0:05:05]} 12... Bd6 {[%clk 1:17:56][%emt
0:03:08]} 13. Nc3 {[%clk 1:18:24][%emt 0:02:32]} 13... Bc5 {[%clk
1:16:04][%emt 0:02:20]} 14. d3 {[%clk 1:17:06][%emt 0:01:49]} 14... Be6 {[%clk
1:14:46][%emt 0:01:46]} 15. Bb3 {[%clk 1:17:15][%emt 0:00:23]} 15... Rad8
{[%clk 1:12:42][%emt 0:02:31]} 16. Bf4 {[%clk 1:15:38][%emt 0:02:10]} 16... g5
{[%clk 1:03:54][%emt 0:09:19]} 17. Bg3 {[%clk 1:15:18][%emt 0:00:50]} 17...
Qh6 {[%clk 1:01:14][%emt 0:03:08]} 18. Bxc7 {[%clk 1:12:31][%emt 0:03:18]}
18... g4 {[%clk 0:55:00][%emt 0:06:44]} 19. Qg3 {[%clk 1:12:04][%emt 0:00:57]}
19... Rd7 {[%clk 0:49:38][%emt 0:03:28]} 20. Bf4 {[%clk 1:11:45][%emt 0:03:13]}
 20... Qf6 {[%clk 0:47:05][%emt 0:03:00]} 21. e5 {[%clk 1:11:17][%emt 0:01:02]}
 21... Qg6 {[%clk 0:45:17][%emt 0:02:15]} 22. Ne4 {[%clk 1:11:04][%emt
0:00:45]} 22... Bb6 {[%clk 0:44:28][%emt 0:01:17]} 23. Nf6+ {[%clk
1:11:19][%emt 0:00:17]} 23... Kg7 {[%clk 0:43:40][%emt 0:01:18]} 24. Nxd7
{[%clk 1:11:39][%emt 0:00:11]} 24... Bxd7 {[%clk 0:43:57][%emt 0:00:13]} 25.
h4 {[%clk 1:08:58][%emt 0:03:10]} 25... f6 {[%clk 0:42:53][%emt 0:01:34]} 26.
e6 {[%clk 1:08:56][%emt 0:00:32]} 26... Be8 {[%clk 0:41:49][%emt 0:01:32]} 27.
Ke2 {[%clk 1:08:20][%emt 0:01:07]} 27... Qf5 {[%clk 0:38:18][%emt 0:04:00]}
28. Rf1 {[%clk 1:07:14][%emt 0:01:39]} 28... Qh5 {[%clk 0:37:07][%emt 0:01:35]}
 29. Bd6 {[%clk 1:06:13][%emt 0:01:36]} 29... Rh8 {[%clk 0:36:29][%emt
0:01:08]} 30. Be7 {[%clk 1:05:30][%emt 0:01:14]} 30... f5 {[%clk 0:35:43][%emt
0:01:15]} 31. Qe5+ {[%clk 1:05:08][%emt 0:00:51]} 31... Kg8 {[%clk
0:35:45][%emt 0:00:27]} 32. Rxf5 {[%clk 1:05:21][%emt 0:00:19]} 32... Qh6
{[%clk 0:35:26][%emt 0:00:46]} 33. Rf8+ {[%clk 1:05:16][%emt 0:00:38]} 33...
Qxf8 {[%clk 0:35:40][%emt 0:00:17]} 34. Bxf8 {[%clk 1:05:43][%emt 0:00:03]}
34... Kxf8 {[%clk 0:36:02][%emt 0:00:07]} 35. Qxh8+ {[%clk 1:06:09][%emt
0:00:04]} 1-0

[White "MARRAS, Marylou"]
[Black "TOURETTE, Maxence"]
[WhiteElo "1472"]
[BlackElo "1709"]
[Result "0-1"]
[Date "2026.03.04"]

[Event "Chpt Reg Jeunes Occitanie 2026 - Espalion"]
[Site "Espalion, France"]
[Round "2.20"]
[ECO "?"]
[Annotator "?"]
[TimeControl "1h30 + 30sec/cp"]

1. d4 {[%clk 1:30:56][%emt 0:00:04]} 1... f5 {[%clk 1:30:44][%emt 0:00:17]} 2.
Nf3 {[%clk 1:31:00][%emt 0:00:24]} 2... e6 {[%clk 1:30:58][%emt 0:00:17]} 3.
e3 {[%clk 1:30:45][%emt 0:00:44]} 3... Nf6 {[%clk 1:31:16][%emt 0:00:13]} 4.
Bd3 {[%clk 1:30:37][%emt 0:00:37]} 4... d5 {[%clk 1:31:25][%emt 0:00:22]} 5.
O-O {[%clk 1:30:21][%emt 0:00:46]} 5... Bd6 {[%clk 1:31:42][%emt 0:00:13]} 6.
b3 {[%clk 1:30:04][%emt 0:00:46]} 6... O-O {[%clk 1:31:48][%emt 0:00:25]} 7.
Bb2 {[%clk 1:29:50][%emt 0:00:44]} 7... c6 {[%clk 1:31:56][%emt 0:00:23]} 8.
Nbd2 {[%clk 1:29:46][%emt 0:00:32]} 8... Ne4 {[%clk 1:31:58][%emt 0:00:29]} 9.
Ne5 {[%clk 1:29:21][%emt 0:00:52]} 9... Nd7 {[%clk 1:31:53][%emt 0:00:38]} 10.
Ndf3 {[%clk 1:28:50][%emt 0:00:59]} 10... Rf6 {[%clk 1:31:07][%emt 0:01:18]}
11. c4 {[%clk 1:27:10][%emt 0:02:10]} 11... Rh6 {[%clk 1:29:07][%emt 0:02:30]}
12. cxd5 {[%clk 1:26:09][%emt 0:01:31]} 12... exd5 {[%clk 1:28:55][%emt
0:00:43]} 13. Nd2 {[%clk 1:25:03][%emt 0:01:34]} 13... Qc7 {[%clk
1:28:47][%emt 0:00:39]} 14. f3 {[%clk 1:24:30][%emt 0:01:02]} 14... Nxd2
{[%clk 1:28:38][%emt 0:00:40]} 15. Qxd2 {[%clk 1:24:41][%emt 0:00:18]} 15...
Nxe5 {[%clk 1:28:49][%emt 0:00:20]} 16. dxe5 {[%clk 1:24:30][%emt 0:00:40]}
16... Bxe5 {[%clk 1:28:36][%emt 0:00:43]} 17. Bxe5 {[%clk 1:23:31][%emt
0:01:28]} 17... Qxe5 {[%clk 1:27:41][%emt 0:01:26]} 18. f4 {[%clk
1:23:36][%emt 0:00:25]} 18... Bd7 {[%clk 1:27:32][%emt 0:00:40]} 19. Rae1
{[%clk 1:23:04][%emt 0:01:02]} 19... Qc7 {[%clk 1:27:38][%emt 0:00:24]} 20.
Rf3 {[%clk 1:22:17][%emt 0:01:16]} 20... Re8 {[%clk 1:26:15][%emt 0:01:54]}
21. Rg3 {[%clk 1:21:37][%emt 0:01:08]} 21... Qb6 {[%clk 1:25:43][%emt 0:01:04]}
 22. Rg5 {[%clk 1:20:16][%emt 0:01:50]} 22... Rf6 {[%clk 1:25:47][%emt
0:00:26]} 23. Kh1 {[%clk 1:19:21][%emt 0:01:24]} 23... g6 {[%clk 1:20:46][%emt
0:05:32]} 24. Rg3 {[%clk 1:18:54][%emt 0:00:56]} 24... Kh8 {[%clk
1:20:34][%emt 0:00:43]} 25. Qc3 {[%clk 1:19:00][%emt 0:00:20]} 25... Kg7
{[%clk 1:19:00][%emt 0:02:09]} 26. Re2 {[%clk 1:16:02][%emt 0:03:28]} 26... c5
{[%clk 1:17:55][%emt 0:01:35]} 27. Rb2 {[%clk 1:14:15][%emt 0:02:16]} 27... d4
{[%clk 1:18:05][%emt 0:00:21]} 28. exd4 {[%clk 1:13:42][%emt 0:01:02]} 28...
cxd4 {[%clk 1:18:20][%emt 0:00:15]} 29. Qd2 {[%clk 1:12:49][%emt 0:01:21]}
29... Rfe6 {[%clk 1:18:25][%emt 0:00:27]} 30. Rb1 {[%clk 1:12:31][%emt
0:00:47]} 30... R6e7 {[%clk 1:16:59][%emt 0:01:57]} 31. Rf3 {[%clk
1:11:57][%emt 0:01:00]} 31... Bc6 {[%clk 1:16:23][%emt 0:01:11]} 32. Rff1
{[%clk 1:11:35][%emt 0:00:51]} 32... Be4 {[%clk 1:16:21][%emt 0:00:32]} 33.
Rbc1 {[%clk 1:09:42][%emt 0:02:24]} 33... Qd6 {[%clk 1:15:38][%emt 0:01:13]}
34. Bb5 {[%clk 1:09:16][%emt 0:00:55]} 34... Bc6 {[%clk 1:15:29][%emt 0:00:39]}
 35. a4 {[%clk 1:08:33][%emt 0:01:13]} 35... Bxb5 {[%clk 1:15:45][%emt
0:00:15]} 36. axb5 {[%clk 1:08:30][%emt 0:00:32]} 36... Qd5 {[%clk
1:15:47][%emt 0:00:28]} 37. Qd3 {[%clk 1:08:24][%emt 0:00:35]} 37... Re3
{[%clk 1:15:43][%emt 0:00:35]} 38. Qc4 {[%clk 1:08:07][%emt 0:00:46]} 38...
Qxc4 {[%clk 1:15:21][%emt 0:00:53]} 39. bxc4 {[%clk 1:08:22][%emt 0:00:14]}
39... d3 {[%clk 1:15:34][%emt 0:00:18]} 40. h3 {[%clk 1:08:30][%emt 0:00:21]}
40... d2 {[%clk 1:15:08][%emt 0:00:56]} 41. Rcd1 {[%clk 1:08:43][%emt 0:00:16]}
 41... Re1 {[%clk 1:15:31][%emt 0:00:09]} 42. Rxd2 {[%clk 1:06:09][%emt
0:03:03]} 42... Rxf1+ {[%clk 1:15:27][%emt 0:00:34]} 43. Kh2 {[%clk
1:06:27][%emt 0:00:12]} 43... h5 {[%clk 1:15:33][%emt 0:00:25]} 44. Rd7+
{[%clk 1:06:44][%emt 0:00:12]} 44... Kh6 {[%clk 1:15:50][%emt 0:00:15]} 45.
Rxb7 {[%clk 1:06:11][%emt 0:01:02]} 45... h4 {[%clk 1:16:04][%emt 0:00:16]}
46. g3 {[%clk 1:05:06][%emt 0:01:34]} 46... Re2# {[%clk 1:16:23][%emt 0:00:11]}
 0-1

[White "BENYETTOU, Louis"]
[Black "BONDAR, Marko"]
[WhiteElo "1841"]
[BlackElo "1609"]
[Result "1-0"]
[Date "2026.03.05"]

[Event "Chpt Reg Jeunes Occitanie 2026 - Espalion"]
[Site "Espalion, France"]
[Round "3.16"]
[ECO "?"]
[Annotator "?"]
[TimeControl "1h30 + 30sec/cp"]

1. e4 {[%clk 1:30:30]} 1... e5 {[%clk 1:30:30]} 2. Nf3 {[%clk 1:30:30]} 2...
Nc6 {[%clk 1:30:30]} 3. Bc4 {[%clk 1:30:30]} 3... Nf6 {[%clk 1:30:30]} 4. Ng5
{[%clk 1:30:30]} 4... d5 {[%clk 1:30:30]} 5. exd5 {[%clk 1:30:30]} 5... Nd4
{[%clk 1:30:30]} 6. c3 {[%clk 1:30:30]} 6... b5 {[%clk 1:30:30]} 7. Bf1 {[%clk
1:30:30]} 7... Nxd5 {[%clk 1:30:40]} 8. cxd4 {[%emt 0:00:05]} 8... Qxg5 {[%clk
1:31:01][%emt 0:00:01]} 9. Bxb5+ {[%clk 1:31:40][%emt 0:00:11]} 9... Kd8
{[%clk 1:31:08][%emt 0:00:24]} 10. O-O {[%clk 1:25:15][%emt 0:06:55]} 10...
Bb7 {[%clk 1:31:31][%emt 0:00:07]} 11. Qf3 {[%clk 1:25:24][%emt 0:00:20]}
11... Be7 {[%clk 1:31:04][%emt 0:00:58]} 12. dxe5 {[%clk 1:09:49][%emt
0:16:05]} 12... Rb8 {[%clk 1:30:48][%emt 0:00:46]} 13. Qg3 {[%clk
1:08:05][%emt 0:02:14]} 13... Nf4 {[%clk 1:27:19][%emt 0:04:00]} 14. d4 {[%clk
1:02:40][%emt 0:05:55]} 14... Bxg2 {[%clk 1:24:34][%emt 0:03:15]} 15. Bxf4
{[%clk 1:02:33][%emt 0:00:35]} 15... Qxg3 {[%clk 1:24:41][%emt 0:00:25]} 16.
Bxg3 {[%clk 1:02:21][%emt 0:00:37]} 16... Bxf1 {[%clk 1:24:28][%emt 0:00:48]}
17. Bxf1 {[%clk 1:02:39][%emt 0:00:10]} 17... Rxb2 {[%clk 1:24:51][%emt
0:00:07]} 18. Nc3 {[%clk 1:02:33][%emt 0:00:37]} 18... Kd7 {[%clk
1:24:29][%emt 0:00:52]} 19. Bh3+ {[%clk 1:01:54][%emt 0:01:08]} 19... Kc6
{[%clk 1:24:49][%emt 0:00:12]} 20. d5+ {[%clk 1:02:11][%emt 0:00:12]} 20...
Kb6 {[%clk 1:24:47][%emt 0:00:33]} 21. Na4+ {[%emt 0:00:28]} 21... Ka5 {[%clk
1:24:33][%emt 0:00:23]} 22. Nxb2 {[%clk 1:02:55][%emt 0:00:08]} 22... Rd8
{[%clk 1:24:58][%emt 0:00:05]} 23. d6 {[%clk 1:03:13][%emt 0:00:12]} 23...
cxd6 {[%clk 1:25:20][%emt 0:00:08]} 24. exd6 {[%clk 1:03:37][%emt 0:00:05]}
24... Bf6 {[%clk 1:25:37][%emt 0:00:13]} 25. Rb1 {[%clk 1:04:12][%emt 0:00:32]}
 25... Kb4 {[%clk 1:26:28][%emt 0:00:04]} 26. Nd3+ {[%clk 1:04:28][%emt
0:00:13]} 26... Kc3 {[%clk 1:26:44][%emt 0:00:15]} 27. Nf4 {[%clk
1:04:39][%emt 0:00:19]} 27... Kc2 {[%clk 1:26:54][%emt 0:00:20]} 28. Bf5+
{[%clk 1:05:00][%emt 0:00:07]} 28... Kd2 {[%clk 1:27:05][%emt 0:00:21]} 29.
Nd5 {[%clk 1:05:05][%emt 0:00:25]} 29... Bg5 {[%clk 1:27:11][%emt 0:00:23]}
30. Rb2+ {[%clk 1:05:08][%emt 0:00:27]} 30... Kc1 {[%clk 1:27:14][%emt
0:00:28]} 31. Rc2+ {[%clk 1:05:29][%emt 0:00:08]} 31... Kb1 {[%clk
1:27:27][%emt 0:00:17]} 32. Nc3+ {[%clk 1:05:44][%emt 0:00:16]} 1-0

[White "DEMANT, Thylan"]
[Black "AMRANE, Samy-Islam"]
[WhiteElo "1586"]
[BlackElo "1809"]
[Result "1/2-1/2"]
[Date "2026.03.05"]